bitfinex/quotes_BTCUSD_20230113
["timestamp","ask_amount","ask_price","bid_price","bid_amount"]
[1673589933907,0.3358518,18808.0,18807.0,0.8133]
[1673589935190,0.33585289,18808.0,18807.0,0.06192734]
[1673589936403,0.84991123,18808.0,18807.0,0.03832789]
[1673589936640,0.94991123,18808.0,18807.0,0.03832789]
[1673589936880,0.84991123,18808.0,18807.0,0.03832789]
[1673589937130,0.84982823,18808.0,18807.0,0.19770732]
[1673589937369,0.51927323,18808.0,18807.0,0.19770732]
[1673589937581,0.51927323,18808.0,18807.0,0.43612094]
[1673589938629,0.00529789,18808.0,18807.0,0.43612094]
[1673589942753,0.00529789,18808.0,18807.0,0.19770732]
[1673589943234,0.00529789,18808.0,18807.0,0.43612094]
[1673589945678,0.00529789,18808.0,18807.0,2.06969891]
[1673589945970,0.00529789,18808.0,18807.0,1.28053222]
[1673589946208,0.00529789,18808.0,18807.0,1.43914391]
[1673589946694,0.00529789,18808.0,18807.0,1.0414564]
[1673589946943,0.00529789,18808.0,18807.0,1.28049679]
[1673589947684,0.00529789,18808.0,18807.0,0.96234678]
[1673589947925,0.00529789,18808.0,18807.0,1.12171211]
[1673589948417,0.00529789,18808.0,18807.0,1.12171266]
[1673589950832,0.00529789,18808.0,18807.0,1.28049679]
[1673589953499,0.00529789,18808.0,18807.0,1.12169966]
[1673589953992,0.00529789,18808.0,18807.0,0.96234678]
[1673589955258,0.00529789,18808.0,18807.0,1.12169652]
[1673589955463,0.00529917,18808.0,18807.0,1.12169652]
[1673589955821,0.00529917,18808.0,18807.0,0.17482404]
[1673589955822,0.86280433,18808.0,18807.0,0.17482404]
[1673589956291,0.53224933,18808.0,18807.0,0.17482404]
[1673589960635,0.53224933,18808.0,18807.0,0.41386443]
[1673589961762,0.53224933,18808.0,18807.0,0.17482404]
[1673589964022,0.53224933,18808.0,18807.0,0.41386443]
[1673589966043,0.00529917,18808.0,18807.0,0.41386443]
[1673589968278,0.00520603,18808.0,18807.0,0.25451469]
[1673589968496,0.00520603,18808.0,18807.0,0.41387621]
[1673589969412,0.33576103,18808.0,18807.0,0.41387621]
[1673589970539,0.33584403,18808.0,18807.0,0.17483582]
[1673589970763,0.33576103,18808.0,18807.0,0.17483582]
[1673589970998,0.99832587,18808.0,18807.0,0.17483582]
[1673589971705,0.89832587,18808.0,18807.0,0.17483582]
[1673589972150,0.56777087,18808.0,18807.0,0.17483582]
[1673589972835,0.56777087,18808.0,18807.0,0.41387621]
[1673589973048,0.56777087,18808.0,18807.0,0.17483582]
[1673589973267,0.89832587,18808.0,18807.0,0.17483582]
[1673589974430,0.89832587,18808.0,18807.0,0.41387621]
[1673589974887,0.89832587,18808.0,18807.0,0.17483582]
[1673589975348,0.89840887,18808.0,18807.0,0.17483582]
[1673589975548,0.89832587,18808.0,18807.0,0.17483582]
[1673589975769,0.89832345,18808.0,18807.0,0.17483582]
[1673589978221,0.89832345,18808.0,18807.0,0.41387621]
[1673589978457,0.56776845,18808.0,18807.0,0.41387621]
[1673589980688,0.56776845,18808.0,18807.0,0.17483582]
[1673589981628,0.89832345,18808.0,18807.0,0.17483582]
[1673589982101,0.56776845,18808.0,18807.0,0.17483582]
[1673589982896,0.89832345,18808.0,18807.0,0.17483582]
[1673589983001,0.56776845,18808.0,18807.0,0.17483582]
[1673589983223,0.89832345,18808.0,18807.0,0.17483582]
[1673589983907,0.56776845,18808.0,18807.0,0.17483582]
[1673589984193,0.56776845,18808.0,18807.0,0.0154743]
[1673589984194,2.32588019,18808.0,18807.0,0.0154743]
[1673589984370,2.11557525,18808.0,18807.0,0.0154743]
[1673589984601,2.13504153,18808.0,18807.0,0.0154743]
[1673589985657,2.55349708,18808.0,18807.0,0.0154743]
[1673589985892,1.68781283,18808.0,18807.0,0.0154743]
[1673589986121,2.02335913,18808.0,18807.0,0.0154743]
[1673589986346,1.86450181,18808.0,18807.0,0.0154743]
[1673589986605,1.70554587,18808.0,18807.0,0.0154743]
[1673589986858,1.5290448,18808.0,18807.0,0.0154743]
[1673589987565,2.14494782,18808.0,18807.0,0.0154743]
[1673589987808,1.98598559,18808.0,18807.0,0.0154743]
[1673589988060,2.14495245,18808.0,18807.0,0.0154743]
[1673589988525,1.80948915,18808.0,18807.0,0.0154743]
[1673589989201,1.55521266,18808.0,18807.0,0.0154743]
[1673589989448,1.73179585,18808.0,18807.0,0.0154743]
[1673589989911,2.11731791,18808.0,18807.0,0.0154743]
[1673589990399,2.27625195,18808.0,18807.0,0.0154743]
[1673589990875,1.70218758,18808.0,18807.0,0.0154743]
[1673589991344,1.94070565,18808.0,18807.0,0.0154743]
[1673589991565,1.73171374,18808.0,18807.0,0.0154743]
[1673589991829,2.0037727,18808.0,18807.0,0.0154743]
[1673589992073,2.16265192,18808.0,18807.0,0.0154743]
[1673589992314,2.00372126,18808.0,18807.0,0.0154743]
[1673589994463,2.00380426,18808.0,18807.0,0.0154743]
[1673589995389,1.38290124,18808.0,18807.0,0.0154743]
[1673589995884,1.38399385,18808.0,18807.0,0.0154743]
[1673589996582,1.14539278,18808.0,18807.0,0.0154743]
[1673589997804,1.38399385,18808.0,18807.0,0.0154743]
[1673589998046,1.14547578,18808.0,18807.0,0.0154743]
[1673589999259,1.28687578,18808.0,18807.0,0.0154743]
[1673589999508,1.12791018,18808.0,18807.0,0.01614805]
[1673589999986,1.12791018,18808.0,18807.0,0.0154743]
[1673590000696,1.28679278,18808.0,18807.0,0.0154743]
[1673590000924,1.12791018,18808.0,18807.0,0.0154743]
[1673590001178,1.12799318,18808.0,18807.0,0.0154743]
[1673590001667,1.12791018,18808.0,18807.0,0.0154743]
[1673590002174,1.28679278,18808.0,18807.0,0.0154743]
[1673590002404,1.28687578,18808.0,18807.0,0.0154743]
[1673590002873,1.28679278,18808.0,18807.0,0.0154743]
[1673590003394,1.12791018,18808.0,18807.0,0.0154743]
[1673590003885,1.12799318,18808.0,18807.0,0.0154743]
[1673590004116,1.12791018,18808.0,18807.0,0.0154743]
[1673590005277,1.12799318,18808.0,18807.0,0.0154743]
[1673590005523,1.12791018,18808.0,18807.0,0.0154743]
[1673590006563,1.12799318,18808.0,18807.0,0.0154743]
[1673590006805,1.28687578,18808.0,18807.0,0.0154743]
[1673590008072,1.28679278,18808.0,18807.0,0.0154743]
[1673590008794,1.12791018,18808.0,18807.0,0.0154743]
[1673590009256,0.98671018,18808.0,18807.0,0.0154743]
[1673590009778,1.14559278,18808.0,18807.0,0.0154743]
[1673590010025,1.38411085,18808.0,18807.0,0.0154743]
[1673590011206,1.38411085,18808.0,18807.0,0.2654743]
[1673590011748,1.38419385,18808.0,18807.0,0.2654743]
[1673590012481,1.38419385,18808.0,18807.0,0.0154743]
[1673590013497,1.37919385,18808.0,18807.0,0.0154743]
[1673590016023,1.37911085,18808.0,18807.0,0.0154743]
[1673590016255,1.37911817,18808.0,18807.0,0.0154743]
[1673590017214,1.1406001,18808.0,18807.0,0.0154743]
[1673590018428,1.37911817,18808.0,18807.0,0.0154743]
[1673590019200,1.23771817,18808.0,18807.0,0.0154743]
[1673590019689,1.23780117,18808.0,18807.0,0.0154743]
[1673590020398,1.39673183,18808.0,18807.0,0.0154743]
[1673590020891,1.39664883,18808.0,18807.0,0.0154743]
[1673590021388,1.2378731,18808.0,18807.0,0.0154743]
[1673590021870,1.2378731,18808.0,18807.0,0.0146703]
[1673590022115,1.2379561,18808.0,18807.0,0.0146703]
[1673590022384,1.2378731,18808.0,18807.0,0.0146703]
[1673590022635,0.99350857,18808.0,18807.0,0.0146703]
[1673590022874,1.23793873,18808.0,18807.0,0.0146703]
[1673590023343,1.13793873,18808.0,18807.0,0.0146703]
[1673590023603,0.89942066,18808.0,18807.0,0.0146703]
[1673590023844,0.81406966,18808.0,18807.0,0.0146703]
[1673590024092,1.05258773,18808.0,18807.0,0.0146703]
[1673590024338,0.81415266,18808.0,18807.0,0.0146703]
[1673590024574,0.81406966,18808.0,18807.0,0.0146703]
[1673590026050,0.89950366,18808.0,18807.0,0.0146703]
[1673590026311,1.13793873,18808.0,18807.0,0.0146703]
[1673590026546,1.05258773,18808.0,18807.0,0.0146703]
[1673590026791,1.14275973,18808.0,18807.0,0.0146703]
[1673590027027,0.81244273,18808.0,18807.0,0.0146703]
[1673590027262,1.24284273,18808.0,18807.0,0.0146703]
[1673590027747,1.40157683,18808.0,18807.0,0.0146703]
[1673590028224,1.08376357,18808.0,18807.0,0.0146703]
[1673590029012,1.40157683,18808.0,18807.0,0.0146703]
[1673590034087,1.39657683,18808.0,18807.0,0.0146703]
[1673590035740,1.55479789,18808.0,18807.0,0.0146703]
[1673590035951,1.15805876,18808.0,18807.0,0.0146703]
[1673590036187,1.3966748,18808.0,18807.0,0.0146703]
[1673590036486,1.15805663,18808.0,18807.0,0.0146703]
[1673590036725,1.55479576,18808.0,18807.0,0.0146703]
[1673590036970,1.15805663,18808.0,18807.0,0.0146703]
[1673590037222,1.39674034,18808.0,18807.0,0.0146703]
[1673590038446,1.15805663,18808.0,18807.0,0.0146703]
[1673590038695,1.23778342,18808.0,18807.0,0.0146703]
[1673590038971,0.39892446,18808.0,18807.0,0.0800803]
[1673590039210,0.00130141,18808.0,18807.0,1.05059912]
[1673590040431,0.00130141,18808.0,18807.0,1.28963951]
[1673590040920,0.00130141,18808.0,18807.0,1.62003951]
[1673590041170,0.00130141,18808.0,18807.0,1.46067799]
[1673590041646,0.00130141,18808.0,18807.0,1.448428]
[1673590041903,0.00130141,18808.0,18807.0,1.778828]
[1673590042153,0.00130141,18808.0,18807.0,1.448428]
[1673590042395,0.00130141,18808.0,18807.0,2.59015968]
[1673590042626,0.00130141,18808.0,18807.0,1.86394954]
[1673590043127,0.00130141,18808.0,18807.0,2.40721223]
[1673590043367,0.00130141,18808.0,18807.0,2.16838448]
[1673590044355,0.00130141,18808.0,18807.0,2.56607199]
[1673590044566,0.00130141,18808.0,18807.0,1.86382706]
[1673590045001,0.00130141,18808.0,18807.0,2.51019756]
[1673590045994,0.00130141,18808.0,18807.0,2.19580608]
[1673590046243,0.00130141,18808.0,18807.0,2.27153244]
[1673590046500,0.00130141,18808.0,18807.0,2.19579038]
[1673590046731,0.00130141,18808.0,18807.0,2.0367304]
[1673590047974,0.00130141,18808.0,18807.0,2.05537144]
[1673590049206,0.00130141,18808.0,18807.0,2.21066617]
[1673590049473,0.00130141,18808.0,18807.0,2.52881618]
[1673590050627,0.00130141,18808.0,18807.0,2.21443142]
[1673590051192,0.00130141,18808.0,18807.0,2.05530276]
[1673590052163,0.00130141,18808.0,18807.0,1.81661319]
[1673590052334,0.00130141,18808.0,18807.0,2.05530276]
[1673590052822,0.00130141,18808.0,18807.0,2.05597651]
[1673590053263,0.00130141,18808.0,18807.0,1.81728694]
[1673590053693,0.00130141,18808.0,18807.0,2.05597651]
[1673590054487,0.00130141,18808.0,18807.0,1.81728694]
[1673590055173,0.00130141,18808.0,18807.0,2.05597651]
[1673590055429,0.00130141,18808.0,18807.0,1.81728694]
[1673590056925,0.00130278,18809.0,18808.0,0.1]
[1673590057177,0.00130278,18809.0,18808.0,0.4304]
[1673590057415,0.00130278,18809.0,18808.0,0.7128]
[1673590057653,0.00130278,18809.0,18808.0,1.22097527]
[1673590058135,0.00130278,18809.0,18808.0,1.12797527]
[1673590058136,0.05730278,18809.0,18808.0,1.12797527]
[1673590058632,0.05719101,18809.0,18808.0,0.79757527]
[1673590059123,0.05719101,18809.0,18808.0,1.12797527]
[1673590060861,0.05719101,18809.0,18808.0,1.128649]
[1673590062495,0.05719101,18809.0,18808.0,0.798249]
[1673590066112,0.05719101,18809.0,18808.0,0.79757527]
[1673590067572,0.05719101,18809.0,18808.0,0.65657527]
[1673590067820,0.05095148,18809.0,18808.0,0.65657527]
[1673590072474,0.05095148,18809.0,18808.0,0.51517527]
[1673590075383,0.05103448,18809.0,18808.0,0.51517527]
[1673590075622,0.05095148,18809.0,18808.0,0.51517527]
[1673590077151,0.05224868,18809.0,18808.0,0.51517527]
[1673590077632,0.05233168,18809.0,18808.0,0.51517527]
[1673590078099,0.05224868,18809.0,18808.0,0.51517527]
[1673590078567,0.05224868,18809.0,18808.0,0.67419662]
[1673590078815,0.05233168,18809.0,18808.0,0.67419662]
[1673590079047,0.05224868,18809.0,18808.0,0.67419662]
[1673590080340,0.05233168,18809.0,18808.0,0.67419662]
[1673590080582,0.05224868,18809.0,18808.0,0.51517527]
[1673590080796,0.05224868,18809.0,18808.0,0.67419662]
[1673590083826,0.05224868,18809.0,18808.0,0.91288619]
[1673590084282,0.05224868,18809.0,18808.0,0.67419662]
[1673590084525,0.05224868,18809.0,18808.0,0.91288619]
[1673590085390,0.05224868,18809.0,18808.0,0.67419662]
[1673590085626,0.05224868,18809.0,18808.0,0.91288619]
[1673590086616,0.05224868,18809.0,18808.0,1.54328619]
[1673590086855,0.05224868,18809.0,18808.0,1.54362513]
[1673590087106,0.05224868,18809.0,18808.0,0.91322513]
[1673590087358,0.05224868,18809.0,18808.0,1.37201485]
[1673590087604,0.05224868,18809.0,18808.0,1.07201485]
[1673590087843,0.05224868,18809.0,18808.0,1.70241485]
[1673590088346,0.05224868,18809.0,18808.0,1.38426484]
[1673590088595,0.05224868,18809.0,18808.0,1.54362431]
[1673590088813,0.05224868,18809.0,18808.0,1.24362431]
[1673590089057,0.05224868,18809.0,18808.0,0.91322431]
[1673590089309,0.05224868,18809.0,18808.0,1.54362431]
[1673590089556,0.05224868,18809.0,18808.0,1.70241485]
[1673590090297,0.05224868,18809.0,18808.0,1.38426484]
[1673590090758,0.05224868,18809.0,18808.0,1.24362604]
[1673590090977,0.05224868,18809.0,18808.0,1.00386484]
[1673590091280,0.05224868,18809.0,18808.0,1.63426484]
[1673590091514,0.05224868,18809.0,18808.0,1.40241485]
[1673590091764,0.05224868,18809.0,18808.0,1.07201485]
[1673590092010,0.05224868,18809.0,18808.0,1.21323991]
[1673590092259,0.05213916,18809.0,18808.0,1.54363991]
[1673590092497,0.05213916,18809.0,18808.0,1.54364031]
[1673590092740,0.05213916,18809.0,18808.0,1.24364031]
[1673590092997,0.05213916,18809.0,18808.0,0.91324031]
[1673590093456,0.05213916,18809.0,18808.0,0.75386484]
[1673590093699,0.05213916,18809.0,18808.0,0.91324409]
[1673590093950,0.05213916,18809.0,18808.0,1.24364409]
[1673590094197,0.05213916,18809.0,18808.0,1.07201485]
[1673590094435,0.05213916,18809.0,18808.0,1.24364429]
[1673590094681,0.05213916,18809.0,18808.0,0.91324429]
[1673590094896,0.05213916,18809.0,18808.0,1.24364429]
[1673590095175,0.05213916,18809.0,18808.0,0.91324429]
[1673590095419,0.05213916,18809.0,18808.0,1.24364429]
[1673590095660,0.05213916,18809.0,18808.0,0.91324429]
[1673590096160,0.05213916,18809.0,18808.0,1.24364429]
[1673590096399,0.05213916,18809.0,18808.0,0.91324429]
[1673590096638,0.05213916,18809.0,18808.0,1.24364429]
[1673590096893,0.05213916,18809.0,18808.0,0.91324429]
[1673590097131,0.05213916,18809.0,18808.0,1.40241485]
[1673590097375,0.05214313,18809.0,18808.0,1.70241485]
[1673590098826,0.05214313,18809.0,18808.0,1.07201485]
[1673590099077,0.05214313,18809.0,18808.0,1.40241485]
[1673590099319,0.05214313,18809.0,18808.0,1.37201485]
[1673590099551,0.05214313,18809.0,18808.0,1.70241485]
[1673590100271,0.05214313,18809.0,18808.0,1.40241485]
[1673590100502,0.05214313,18809.0,18808.0,0.75386484]
[1673590100736,0.05214313,18809.0,18808.0,1.40241485]
[1673590100980,0.05214313,18809.0,18808.0,1.07201485]
[1673590101218,0.05214313,18809.0,18808.0,1.70241485]
[1673590101467,0.05214313,18809.0,18808.0,1.08426484]
[1673590101711,0.05214313,18809.0,18808.0,1.40241485]
[1673590102189,0.05214313,18809.0,18808.0,1.70241485]
[1673590102668,0.05214313,18809.0,18808.0,1.86141279]
[1673590104162,0.05214313,18809.0,18808.0,1.70277701]
[1673590104402,0.05214313,18809.0,18808.0,1.46372528]
[1673590104897,0.05214313,18809.0,18808.0,1.86141279]
[1673590105128,0.05214313,18809.0,18808.0,1.70276188]
[1673590106355,0.05214313,18809.0,18808.0,1.86141279]
[1673590108853,0.05214313,18809.0,18808.0,1.46372528]
[1673590109067,0.05214313,18809.0,18808.0,1.37233583]
[1673590109339,0.05214313,18809.0,18808.0,1.51373583]
[1673590110573,0.05214313,18809.0,18808.0,1.21373583]
[1673590111538,0.05214313,18809.0,18808.0,1.51373583]
[1673590112251,0.05214313,18809.0,18808.0,1.21373583]
[1673590112488,0.05207604,18809.0,18808.0,1.51373583]
[1673590112746,0.05207604,18809.0,18808.0,1.84413583]
[1673590116683,0.05207604,18809.0,18808.0,1.51373583]
[1673590116915,0.05207604,18809.0,18808.0,1.84413583]
[1673590117162,0.05207604,18809.0,18808.0,1.51373583]
[1673590117672,0.05207604,18809.0,18808.0,1.21373583]
[1673590117906,0.05207796,18809.0,18808.0,1.21373583]
[1673590118622,0.05216096,18809.0,18808.0,1.05496603]
[1673590118868,0.74267355,18809.0,18808.0,0.16638021]
[1673590119134,1.67694771,18809.0,18808.0,0.007]
[1673590119392,1.99476097,18809.0,18808.0,0.007]
[1673590119631,1.99484397,18809.0,18808.0,0.007]
[1673590120131,1.89489974,18809.0,18808.0,0.007]
[1673590120375,1.73619997,18809.0,18808.0,0.007]
[1673590120620,1.41460909,18809.0,18808.0,0.007]
[1673590120829,1.57277665,18809.0,18808.0,0.007]
[1673590121092,0.1,18808.0,18807.0,0.0146703]
[1673590121376,0.6708703,18808.0,18807.0,0.0146703]
[1673590121631,1.76640655,18808.0,18807.0,0.0146703]
[1673590122123,1.77040655,18808.0,18807.0,0.0386703]
[1673590122370,1.53175172,18808.0,18807.0,0.0386703]
[1673590122617,1.77040655,18808.0,18807.0,0.0386703]
[1673590123110,1.76640655,18808.0,18807.0,0.0146703]
[1673590123622,1.77140655,18808.0,18807.0,0.0416703]
[1673590123868,1.76640655,18808.0,18807.0,0.0146703]
[1673590124105,1.81840655,18808.0,18807.0,0.0186703]
[1673590124350,1.68056963,18808.0,18807.0,0.0186703]
[1673590124619,2.62373937,18808.0,18807.0,0.0186703]
[1673590125347,2.57173937,18808.0,18807.0,0.0146703]
[1673590125594,2.17500024,18808.0,18807.0,0.0146703]
[1673590126349,2.17500024,18808.0,18807.0,0.0156703]
[1673590126350,2.99433355,18808.0,18807.0,0.0156703]
[1673590126580,2.99434027,18808.0,18807.0,0.0156703]
[1673590127067,2.88934027,18808.0,18807.0,0.0146703]
[1673590127319,2.88934027,18808.0,18807.0,0.0156703]
[1673590127320,3.02434027,18808.0,18807.0,0.0156703]
[1673590128342,2.08037703,18808.0,18807.0,0.0156703]
[1673590128580,1.84240299,18808.0,18807.0,0.0156703]
[1673590128826,2.23925483,18808.0,18807.0,0.0156703]
[1673590129593,1.84240299,18808.0,18807.0,0.0156703]
[1673590129802,2.08038706,18808.0,18807.0,0.0156703]
[1673590130345,1.92151139,18808.0,18807.0,0.0156703]
[1673590130699,1.76289887,18808.0,18807.0,0.0156703]
[1673590130875,1.92150016,18808.0,18807.0,0.0156703]
[1673590132127,1.48455566,18808.0,18807.0,0.0156703]
[1673590132363,1.24657159,18808.0,18807.0,0.0156703]
[1673590132597,1.72466943,18808.0,18807.0,0.0156703]
[1673590133323,1.24657159,18808.0,18807.0,0.0156703]
[1673590134311,1.80484283,18808.0,18807.0,0.0156703]
[1673590134575,1.24657159,18808.0,18807.0,0.0156703]
[1673590136003,1.48455566,18808.0,18807.0,0.0156703]
[1673590136974,1.24657159,18808.0,18807.0,0.0156703]
[1673590137952,1.24787345,18808.0,18807.0,0.0156703]
[1673590138952,2.24787345,18808.0,18807.0,0.0156703]
[1673590139689,2.63914496,18808.0,18807.0,0.0156703]
[1673590139938,2.30368166,18808.0,18807.0,0.0156703]
[1673590142606,2.02158166,18808.0,18807.0,0.0156703]
[1673590145597,2.5997001,18808.0,18807.0,0.0156703]
[1673590145845,2.69640959,18808.0,18807.0,0.0156703]
[1673590146341,2.85501088,18808.0,18807.0,0.01558868]
[1673590146602,2.43107299,18808.0,18807.0,0.01558868]
[1673590146850,2.58967428,18808.0,18807.0,0.01558868]
[1673590150695,2.82765835,18808.0,18807.0,0.01558868]
[1673590151163,0.1,18807.0,18805.0,0.25]
[1673590151379,0.3304,18806.0,18805.0,0.25]
[1673590151598,0.9372329,18807.0,18805.0,0.25]
[1673590151807,0.6241955,18807.0,18805.0,0.25]
[1673590152470,0.7361955,18807.0,18805.0,0.252]
[1673590152898,0.6361955,18807.0,18805.0,0.252]
[1673590154636,0.6361955,18807.0,18806.0,0.0196033]
[1673590154877,0.6362785,18807.0,18806.0,0.0196033]
[1673590155604,0.5242785,18807.0,18806.0,0.0196033]
[1673590155837,0.6592785,18807.0,18806.0,0.0216033]
[1673590156072,0.81787979,18807.0,18806.0,0.0216033]
[1673590156730,1.14827979,18807.0,18806.0,0.0216033]
[1673590157716,1.05328679,18807.0,18806.0,0.0216033]
[1673590157969,1.14827979,18807.0,18806.0,0.0216033]
[1673590158215,1.29127086,18807.0,18806.0,0.0216033]
[1673590158447,1.38756478,18807.0,18806.0,0.0216033]
[1673590158690,1.29257178,18807.0,18806.0,0.0216033]
[1673590158897,1.38756478,18807.0,18806.0,0.0216033]
[1673590159143,1.29257178,18807.0,18806.0,0.0216033]
[1673590159381,1.38756478,18807.0,18806.0,0.0216033]
[1673590160391,1.38748178,18807.0,18806.0,0.0216033]
[1673590160627,1.54636868,18807.0,18806.0,0.0216033]
[1673590160890,2.17778956,18807.0,18806.0,0.0216033]
[1673590161145,2.0235885,18807.0,18806.0,0.0216033]
[1673590161361,2.8086769,18807.0,18806.0,0.0216033]
[1673590161657,2.8087599,18807.0,18806.0,0.0216033]
[1673590162619,2.49040785,18807.0,18806.0,0.0216033]
[1673590162866,2.49032485,18807.0,18806.0,0.2716033]
[1673590163084,1.54700853,18807.0,18806.0,0.2716033]
[1673590164302,1.30846761,18807.0,18806.0,0.2716033]
[1673590164541,1.70531945,18807.0,18806.0,0.2716033]
[1673590164785,1.30846761,18807.0,18806.0,0.2716033]
[1673590165041,1.5470396,18807.0,18806.0,0.2716033]
[1673590165287,1.70531945,18807.0,18806.0,0.2716033]
[1673590165747,2.49040222,18807.0,18806.0,0.2716033]
[1673590166473,2.49031922,18807.0,18806.0,0.2716033]
[1673590166743,2.49031607,18807.0,18806.0,0.2716033]
[1673590169825,2.49031387,18807.0,18806.0,0.2716033]
[1673590170168,2.49039687,18807.0,18806.0,0.2716033]
[1673590170416,2.17290868,18807.0,18806.0,0.2716033]
[1673590170651,2.49104482,18807.0,18806.0,0.2716033]
[1673590170894,2.17290868,18807.0,18806.0,0.2716033]
[1673590171850,2.49105262,18807.0,18806.0,0.2716033]
[1673590172575,2.49096962,18807.0,18806.0,0.2716033]
[1673590172817,1.7058922,18807.0,18806.0,0.2716033]
[1673590173049,1.54766311,18807.0,18806.0,0.2716033]
[1673590174024,1.54774611,18807.0,18806.0,0.2716033]
[1673590176423,1.54777323,18807.0,18806.0,0.2716033]
[1673590177135,1.54769023,18807.0,18806.0,0.2716033]
[1673590177595,1.21729023,18807.0,18806.0,0.2716033]
[1673590177838,1.21729023,18807.0,18806.0,0.0216033]
[1673590178293,1.21737323,18807.0,18806.0,0.0216033]
[1673590178528,1.21729111,18807.0,18806.0,0.0216033]
[1673590178996,1.21729111,18807.0,18806.0,0.2716033]
[1673590179473,0.89923017,18807.0,18806.0,0.2716033]
[1673590179911,1.21737411,18807.0,18806.0,0.2716033]
[1673590180174,1.05825699,18807.0,18806.0,0.2716033]
[1673590180916,1.05833999,18807.0,18806.0,0.2716033]
[1673590181170,1.05825699,18807.0,18806.0,0.2716033]
[1673590182183,1.05833999,18807.0,18806.0,0.2716033]
[1673590182430,1.05825699,18807.0,18806.0,0.2716033]
[1673590184654,1.05833999,18807.0,18806.0,0.2716033]
[1673590185111,1.05825699,18807.0,18806.0,0.2716033]
[1673590185623,0.1363018,18807.0,18806.0,0.79512726]
[1673590185862,0.1363018,18807.0,18806.0,0.95450747]
[1673590188902,0.1363018,18807.0,18806.0,0.79512726]
[1673590190166,0.13623663,18807.0,18806.0,1.12552726]
[1673590190408,0.13623663,18807.0,18806.0,0.79512726]
[1673590190661,0.13623663,18807.0,18806.0,0.95450747]
[1673590190900,0.13623663,18807.0,18806.0,1.28490747]
[1673590191143,0.13623663,18807.0,18806.0,0.95450747]
[1673590191383,0.13623663,18807.0,18806.0,1.58490747]
[1673590191635,0.13623663,18807.0,18806.0,2.44148132]
[1673590191889,0.13623663,18807.0,18806.0,2.60025112]
[1673590192132,0.13623663,18807.0,18806.0,2.62525112]
[1673590192890,0.13623663,18807.0,18806.0,2.46628528]
[1673590193135,0.13623663,18807.0,18806.0,2.28978782]
[1673590193646,0.13623663,18807.0,18806.0,1.97163781]
[1673590194134,0.13623663,18807.0,18806.0,2.62525112]
[1673590194633,0.13623663,18807.0,18806.0,2.28978782]
[1673590194880,0.13623663,18807.0,18806.0,2.46622961]
[1673590196625,0.13623663,18807.0,18806.0,2.13076631]
[1673590197111,0.13623663,18807.0,18806.0,1.89175576]
[1673590197848,0.13623663,18807.0,18806.0,2.13076631]
[1673590198114,0.13623663,18807.0,18806.0,1.89175576]
[1673590198830,0.13623574,18807.0,18806.0,1.43262726]
[1673590199092,0.13623574,18807.0,18806.0,1.73262726]
[1673590201094,0.13623574,18807.0,18806.0,1.89175576]
[1673590201339,0.13476674,18807.0,18806.0,1.73262726]
[1673590201831,0.13476674,18807.0,18806.0,1.89175576]
[1673590206711,0.13476674,18807.0,18806.0,1.73262726]
[1673590207777,0.13476674,18807.0,18806.0,1.48262726]
[1673590208036,0.13476674,18807.0,18806.0,1.64175576]
[1673590208283,0.13476674,18807.0,18806.0,1.48262726]
[1673590208873,0.13476674,18807.0,18806.0,1.64175576]
[1673590209081,0.13476674,18807.0,18806.0,1.48262726]
[1673590209508,0.13476674,18807.0,18806.0,1.64175576]
[1673590210188,0.13476674,18807.0,18806.0,1.48262726]
[1673590210399,0.13476674,18807.0,18806.0,1.64175576]
[1673590212595,0.13476674,18807.0,18806.0,1.88076631]
[1673590215842,0.13476674,18807.0,18806.0,1.34175576]
[1673590217105,0.13476674,18807.0,18806.0,1.64175576]
[1673590217343,0.13476674,18807.0,18806.0,1.88076631]
[1673590218837,0.13476674,18807.0,18806.0,2.13076631]
[1673590219050,0.1347686,18807.0,18806.0,2.13076631]
[1673590221767,0.1347686,18807.0,18806.0,2.28978782]
[1673590222683,0.1347686,18807.0,18806.0,2.14908782]
[1673590222922,0.1347686,18807.0,18806.0,1.79584678]
[1673590223410,0.1347686,18807.0,18806.0,1.47769677]
[1673590223660,0.1347686,18807.0,18806.0,1.81538194]
[1673590224632,0.1347686,18807.0,18806.0,1.56538194]
[1673590224888,0.1347686,18807.0,18806.0,1.56538499]
[1673590226320,0.1347686,18807.0,18806.0,1.7240589]
[1673590230395,0.1347686,18807.0,18806.0,1.56545434]
[1673590230647,0.1347686,18807.0,18806.0,1.32637139]
[1673590230896,0.1347686,18807.0,18806.0,1.56545502]
[1673590231136,0.1347686,18807.0,18806.0,1.26545502]
[1673590231613,0.1347686,18807.0,18806.0,1.7240589]
[1673590232272,0.1347686,18807.0,18806.0,2.0544589]
[1673590234305,0.1347686,18807.0,18806.0,1.7240589]
[1673590234549,0.1347686,18807.0,18806.0,1.9740589]
[1673590237494,0.1347686,18807.0,18806.0,1.57637139]
[1673590238015,0.1347686,18807.0,18806.0,1.9740589]
[1673590239254,0.1347686,18807.0,18806.0,1.81550668]
[1673590239492,0.13476272,18807.0,18806.0,1.81550668]
[1673590239990,0.13476272,18807.0,18806.0,1.57637139]
[1673590240229,0.13476272,18807.0,18806.0,1.81550594]
[1673590240480,0.13476272,18807.0,18806.0,1.57637139]
[1673590241729,0.13476272,18807.0,18806.0,1.9740589]
[1673590243686,0.13476272,18807.0,18806.0,1.57637139]
[1673590243967,0.13476272,18807.0,18806.0,1.32637139]
[1673590244208,0.13476272,18807.0,18806.0,1.7240589]
[1673590244586,0.13476272,18807.0,18806.0,2.0544589]
[1673590245248,0.13476272,18807.0,18806.0,1.87305395]
[1673590245693,0.13476272,18807.0,18806.0,1.54265395]
[1673590245964,0.13476272,18807.0,18806.0,1.30352108]
[1673590246171,0.13476272,18807.0,18806.0,1.70120859]
[1673590246641,0.00129689,18807.0,18806.0,1.70120859]
[1673590246850,0.13729689,18807.0,18806.0,1.30352108]
[1673590247551,0.00129689,18807.0,18806.0,1.70120859]
[1673590247796,0.00129689,18807.0,18806.0,1.30352108]
[1673590248042,0.00129689,18807.0,18806.0,1.54265346]
[1673590248555,0.13629689,18807.0,18806.0,1.54265346]
[1673590251245,0.13629689,18807.0,18806.0,1.30352108]
[1673590251485,0.13629689,18807.0,18806.0,1.70120859]
[1673590254373,0.13637989,18807.0,18806.0,1.70054333]
[1673590254610,0.13571855,18807.0,18806.0,1.21914813]
[1673590255105,0.13563555,18807.0,18806.0,1.21914813]
[1673590255345,0.13563555,18807.0,18806.0,1.51914813]
[1673590255978,0.13571855,18807.0,18806.0,1.51914813]
[1673590256236,0.13571855,18807.0,18806.0,1.06043008]
[1673590256479,0.13563555,18807.0,18806.0,1.06043008]
[1673590257000,0.00063555,18807.0,18806.0,1.06043008]
[1673590257261,0.00063555,18807.0,18806.0,1.36043008]
[1673590257501,0.00063555,18807.0,18806.0,1.06043008]
[1673590258057,0.13663555,18807.0,18806.0,1.06043008]
[1673590259727,0.13730345,18807.0,18806.0,1.06043008]
[1673590260875,0.23730345,18807.0,18806.0,0.82128526]
[1673590261403,0.13730345,18807.0,18806.0,0.82128526]
[1673590261668,0.13730345,18807.0,18806.0,1.51914813]
[1673590261918,0.13730345,18807.0,18806.0,1.84954813]